[Event "Romanian-ch Women 2022"]
[Site "Eforie Nord"]
[Date "2022.02.20"]
[Round "1.1"]
[White "Bulmaga, Irina"]
[Black "Batagan, Ilinca-Petra"]
[Result "1-0"]
[ECO "B90"]
[WhiteElo "2390"]
[BlackElo "1881"]
[Annotator "ChessBase"]
[PlyCount "59"]
[EventDate "2022.02.20"]
[EventType "swiss"]
[EventCountry "ROU"]
[SourceTitle "playchess.com"]
[Source "ChessBase"]
[SourceQuality "1"]
[TimeControl "40/5400+30:900+30"]

1. e4 {[%emt 0:00:04]} c5 {[%emt 0:00:09]} 2. Nf3 {[%emt 0:00:08]} d6 {[%emt 0:00:11]} 3. d4 {[%emt 0:00:08]} cxd4 {[%emt 0:00:28]} 4. Nxd4 {[%emt 0:00:09]} Nf6 {[%emt 0:00:14]} 5. Nc3 {[%emt 0:00:08]} a6 {[%emt 0:00:31]} 6. a4 {[%emt 0:00:16]} e5 {[%emt 0:01:51]} 7. Nf3 {[%emt 0:00:12]} Be7 {[%emt 0:01:48]} 8. Bc4 {[%emt 0:00:23]} O-O {[%emt 0:01:28]} 9. O-O {[%emt 0:00:16]} Be6 {[%emt 0:00:58]} 10. Qe2 {[%emt 0:01:01]} Qc7 {[%emt 0:02:16]} 11. Bb3 {[%emt 0:00:41]} Nc6 {[%emt 0:02:51]} 12. Bg5 {[%emt 0:12:57]} Rac8 {[%emt 0:14:54]} 13. Rfd1 {[%emt 0:02:56]} Nh5 {[%emt 0:11:26]} 14. Be3 {[%emt 0:09:53]} Nf6 {[%emt 0:05:40]} 15. Bg5 {[%emt 0:26:00]} Nh5 {[%emt 0:03:29]} 16. Bd2 {[%emt 0:02:12]} Nf6 {[%emt 0:04:31]} 17. Be1 {[%emt 0:08:35]} Bg4 {[%emt 0:12:13]} 18. Qe3 {[%emt 0:10:51]} Nd4 {[%emt 0:04:44]} 19. Nxd4 {[%emt 0:00:26]} Bxd1 {[%emt 0:01:15]} 20. Ne6 {[%emt 0:01:15]} fxe6 {[%emt 0:04:54]} 21. Bxe6+ {[%emt 0:00:13]} Kh8 {[%emt 0:00:05]} 22. Bxc8 {[%emt 0:00:34]} Qxc8 {[%emt 0:08:49]} 23. Rxd1 {[%emt 0:00:19]} Qc6 {[%emt 0:02:58]} 24. Qd3 {[%emt 0:02:51]} b5 {[%emt 0:03:26]} 25. axb5 {[%emt 0:01:15]} axb5 {[%emt 0:00:02]} 26. Qxb5 {[%emt 0:02:38]} Qxb5 {[%emt 0:00:44]} 27. Nxb5 {[%emt 0:00:07]} Nxe4 {[%emt 0:00:07]} 28. f3 {[%emt 0:01:58]} Rb8 {[%emt 0:04:09]} 29. c4 {[%emt 0:01:34]} Nf6 {[%emt 0:02:23]} 30. Bb4 {[%emt 0:04:11]} 1-0

[Event "Romanian-ch Women 2022"]
[Site "Eforie Nord"]
[Date "2022.02.20"]
[Round "1.2"]
[White "Panainte, Andreea-Bianca"]
[Black "Peptan, Corina-Isabela"]
[Result "1/2-1/2"]
[ECO "B15"]
[WhiteElo "1865"]
[BlackElo "2384"]
[Annotator "ChessBase"]
[PlyCount "51"]
[EventDate "2022.02.20"]
[EventType "swiss"]
[EventCountry "ROU"]
[SourceTitle "playchess.com"]
[Source "ChessBase"]
[SourceQuality "1"]
[TimeControl "40/5400+30:900+30"]

1. e4 {[%emt 0:00:03]} c6 {[%emt 0:00:08]} 2. d4 {[%emt 0:00:08]} g6 {[%emt 0:01:10]} 3. Nc3 {[%emt 0:00:33]} Bg7 {[%emt 0:00:10]} 4. Be3 {[%emt 0:02:05]} d5 {[%emt 0:01:41]} 5. exd5 {[%emt 0:04:04]} cxd5 {[%emt 0:00:06]} 6. Nf3 {[%emt 0:00:27]} Nf6 {[%emt 0:08:49]} 7. Bd3 {[%emt 0:03:00]} Nc6 {[%emt 0:02:03]} 8. O-O {[%emt 0:00:43]} O-O {[%emt 0:01:49]} 9. h3 {[%emt 0:07:39]} Nb4 {[%emt 0:08:59]} 10. Ne5 {[%emt 0:04:40]} Nxd3 {[%emt 0:00:42]} 11. Qxd3 {[%emt 0:05:13]} a6 {[%emt 0:07:38]} 12. Qd2 {[%emt 0:11:04]} b5 {[%emt 0:19:29]} 13. a3 {[%emt 0:04:53]} Ne4 {[%emt 0:02:52]} 14. Nxe4 {[%emt 0:02:46]} dxe4 {[%emt 0:00:02]} 15. Rad1 {[%emt 0:04:44]} Bb7 {[%emt 0:04:12]} 16. Bh6 {[%emt 0:02:00]} Rc8 {[%emt 0:01:31]} 17. Bxg7 {[%emt 0:01:13]} Kxg7 {[%emt 0:00:02]} 18. Ng4 {[%emt 0:01:37]} f5 {[%emt 0:07:10]} 19. Qh6+ {[%emt 0:07:00]} Kg8 {[%emt 0:00:41]} 20. Ne5 {[%emt 0:00:32]} Rxc2 {[%emt 0:02:56]} 21. h4 {[%emt 0:01:20]} f4 {[%emt 0:19:16]} 22. h5 {[%emt 0:06:51]} gxh5 {[%emt 0:02:24]} 23. Qg5+ {[%emt 0:00:54]} Kh8 {[%emt 0:00:35]} 24. Ng6+ {[%emt 0:01:53]} hxg6 {[%emt 0:00:09]} 25. Qh6+ {[%emt 0:00:06]} Kg8 {[%emt 0:00:03]} 26. Qxg6+ {[%emt 0:00:09]} 1/2-1/2

[Event "Romanian-ch Women 2022"]
[Site "Eforie Nord"]
[Date "2022.02.20"]
[Round "1.3"]
[White "Cosma, Elena-Luminita"]
[Black "Matasaru, Stephanie"]
[Result "1-0"]
[ECO "D11"]
[WhiteElo "2281"]
[BlackElo "1861"]
[Annotator "NA"]
[PlyCount "85"]
[EventDate "2022.02.20"]
[EventType "swiss"]
[EventCountry "ROU"]
[SourceTitle "playchess.com"]
[Source "ChessBase"]
[SourceQuality "1"]
[TimeControl "40/5400+30:900+30"]

1. d4 {[%emt 0:00:30]} d5 {[%emt 0:00:30]} 2. Nf3 {[%emt 0:00:02]} Nf6 {[%emt 0:00:00]} 3. g3 {[%emt 0:00:05]} Bf5 {[%emt 0:00:45]} 4. c4 {[%emt 0:00:39]} dxc4 {[%emt 0:01:26]} 5. Bg2 {[%emt 0:00:55]} c6 {[%emt 0:02:01]} 6. O-O {[%emt 0:00:18]} Nbd7 {[%emt 0:01:03]} 7. Na3 {[%emt 0:10:52]} e6 {[%emt 0:03:13]} (7... b5 $11) 8. Nxc4 {[%emt 0:00:16]} Be7 {[%emt 0:01:58]} 9. Bf4 {[%emt 0:07:33]} O-O {[%emt 0:11:35]} (9... Be4 $14 {should be considered.}) 10. Nd6 {[%emt 0:02:05]} Bxd6 {[%emt 0:01:06]} 11. Bxd6 {[%emt 0:00:07]} Re8 {[%emt 0:00:10]} 12. Ne5 {[%emt 0:05:48]} Nb6 {[%emt 0:05:44]} 13. Ba3 {[%emt 0:02:43]} Qc7 {[%emt 0:03:11]} 14. Qb3 {[%emt 0:04:50]} Nfd7 {[%emt 0:03:47] [#]} 15. e4 $1 {[%emt 0:06:03]} Bg6 {[%emt 0:01:25]} 16. Nxg6 {[%emt 0:02:15]} hxg6 {[%emt 0:00:14]} 17. Rac1 {[%emt 0:00:32]} Rac8 {[%emt 0:06:44]} 18. d5 {[%emt 0:06:36]} (18. Rfd1 $142) 18... c5 {[%emt 0:03:07]} (18... Qe5 $142) 19. dxe6 {[%emt 0:17:38]} Rxe6 {[%emt 0:00:13]} 20. Rfd1 {[%emt 0:00:34]} Rd6 {[%emt 0:11:15]} 21. Bh3 {[%emt 0:10:59]} (21. Re1 $142) 21... Rxd1+ {[%emt 0:04:54]} 22. Rxd1 {[%emt 0:00:18]} Re8 {[%emt 0:02:04] [#]} 23. Qb5 $1 {[%emt 0:05:24]} Re7 {[%emt 0:05:03]} ({Black should try} 23... Nf6) 24. Bg2 {[%emt 0:01:15]} a6 {[%emt 0:04:38]} 25. Qa5 {[%emt 0:01:12]} Qe5 {[%emt 0:11:01]} (25... Nd5 $142 26. Qxc7 Nxc7) 26. b3 {[%emt 0:02:22]} Kh7 {[%emt 0:03:27]} 27. Rc1 {[%emt 0:05:41]} Re6 {[%emt 0:01:32]} 28. Qc3 {[%emt 0:02:05]} Qc7 {[%emt 0:04:03]} 29. Qe3 {[%emt 0:01:35]} ({Worse is} 29. Bxc5 Nxc5 30. b4 (30. Qxc5 $2 Rc6 $19) 30... Nba4 $11) (29. f4 $18) 29... c4 {[%emt 0:00:51]} (29... Nd5 $16 30. Qe1 N5f6) 30. Qd4 {[%emt 0:01:09]} Qe5 {[%emt 0:02:14] [#]} 31. Qxe5 $1 {[%emt 0:01:19]} Nxe5 {[%emt 0:00:01]} 32. f4 {[%emt 0:01:13]} Nc6 {[%emt 0:03:10]} 33. bxc4 {[%emt 0:00:17]} Nd4 {[%emt 0:00:10]} 34. Kf2 {[%emt 0:00:30]} Rc6 {[%emt 0:00:17]} 35. c5 {[%emt 0:00:59]} Nc8 {[%emt 0:01:01]} 36. e5 {[%emt 0:00:50]} Rc7 {[%emt 0:00:07]} 37. Ke3 {[%emt 0:00:43]} Nb5 {[%emt 0:00:19]} 38. Bb4 {[%emt 0:00:26]} Ne7 {[%emt 0:00:15]} 39. Ba5 {[%emt 0:00:36]} Nf5+ {[%emt 0:01:06]} 40. Kf2 {[%emt 0:00:00]} Rd7 {[%emt 0:00:00]} 41. a4 {[%emt 0:01:10]} Nbd4 {[%emt 0:00:47]} 42. Rd1 $18 {[%emt 0:01:40]} Ne7 {[%emt 0:09:17]} 43. Bc3 {[%emt 0:00:48]} 1-0

[Event "Romanian-ch Women 2022"]
[Site "Eforie Nord"]
[Date "2022.02.20"]
[Round "1.4"]
[White "Didiliuc, Dariana-Gabriela"]
[Black "Sandu, Mihaela"]
[Result "0-1"]
[ECO "E73"]
[WhiteElo "1841"]
[BlackElo "2269"]
[Annotator "ChessBase"]
[PlyCount "80"]
[EventDate "2022.02.20"]
[EventType "swiss"]
[EventCountry "ROU"]
[SourceTitle "playchess.com"]
[Source "ChessBase"]
[SourceQuality "1"]
[TimeControl "40/5400+30:900+30"]

1. d4 {[%emt 0:00:30]} Nf6 {[%emt 0:00:09]} 2. c4 {[%emt 0:00:00]} g6 {[%emt 0:00:04]} 3. Nc3 {[%emt 0:00:06]} Bg7 {[%emt 0:00:03]} 4. e4 {[%emt 0:00:22]} d6 {[%emt 0:00:13]} 5. Be2 {[%emt 0:00:37]} O-O {[%emt 0:00:05]} 6. Be3 {[%emt 0:00:25]} c5 {[%emt 0:00:16]} 7. e5 {[%emt 0:02:11]} Nfd7 {[%emt 0:12:10]} 8. exd6 {[%emt 0:01:54]} exd6 {[%emt 0:00:05]} 9. Nf3 {[%emt 0:00:40]} Nc6 {[%emt 0:00:23]} 10. O-O {[%emt 0:04:40]} Re8 {[%emt 0:05:09]} 11. Re1 {[%emt 0:08:20]} b6 {[%emt 0:15:47]} 12. Nb5 {[%emt 0:02:57]} Nf6 {[%emt 0:04:00]} 13. Bf4 {[%emt 0:04:54]} Re4 {[%emt 0:09:48]} 14. Bg3 {[%emt 0:05:41]} cxd4 {[%emt 0:05:38]} 15. Ng5 {[%emt 0:04:45]} Re7 {[%emt 0:06:02]} 16. Bf3 {[%emt 0:00:52]} Bd7 {[%emt 0:01:53]} 17. Nxd6 {[%emt 0:04:24]} h6 {[%emt 0:06:43]} 18. Rxe7 {[%emt 0:01:45]} Qxe7 {[%emt 0:00:04]} 19. Ngxf7 {[%emt 0:21:48]} Rf8 {[%emt 0:00:42]} 20. Bxc6 {[%emt 0:00:49]} Bxc6 {[%emt 0:00:36]} 21. Ne5 {[%emt 0:00:37]} Qxd6 {[%emt 0:01:16]} 22. Nxg6 {[%emt 0:00:25]} Qc5 {[%emt 0:04:34]} 23. Nxf8 {[%emt 0:01:03]} Bxf8 {[%emt 0:00:18]} 24. b3 {[%emt 0:04:05]} Bg7 {[%emt 0:00:44]} 25. f3 {[%emt 0:01:46]} Nh5 {[%emt 0:01:56]} 26. Bf2 {[%emt 0:03:56]} Nf4 {[%emt 0:00:42]} 27. Qd2 {[%emt 0:00:39]} Qg5 {[%emt 0:00:23]} 28. Be1 {[%emt 0:02:58]} Bxf3 {[%emt 0:00:41]} 29. g3 {[%emt 0:00:18]} d3 {[%emt 0:01:45]} 30. Qxf4 {[%emt 0:02:05]} Qxf4 {[%emt 0:00:10]} 31. gxf4 {[%emt 0:00:04]} Bd4+ {[%emt 0:00:51]} 32. Kf1 {[%emt 0:00:06]} Be2+ {[%emt 0:00:05]} 33. Kg2 {[%emt 0:00:05]} Bxa1 {[%emt 0:00:04]} 34. Bd2 {[%emt 0:00:25]} Bd4 {[%emt 0:00:07]} 35. f5 {[%emt 0:00:15]} Kg7 {[%emt 0:00:52]} 36. Kg3 {[%emt 0:00:06]} Be5+ {[%emt 0:00:19]} 37. Kf2 {[%emt 0:00:08]} h5 {[%emt 0:00:05]} 38. h4 {[%emt 0:01:16]} Kf6 {[%emt 0:00:04]} 39. Bg5+ {[%emt 0:00:15]} Kxf5 {[%emt 0:00:09]} 40. Ke3 {[%emt 0:00:00]} Bf6 {[%emt 0:00:00]} 0-1

[Event "Romanian-ch Women 2022"]
[Site "Eforie Nord"]
[Date "2022.02.20"]
[Round "1.5"]
[White "Ciolacu, Alessia-Mihaela"]
[Black "Anghel, Maria"]
[Result "1-0"]
[ECO "D26"]
[WhiteElo "2239"]
[BlackElo "1834"]
[Annotator "ChessBase"]
[PlyCount "53"]
[EventDate "2022.02.20"]
[EventType "swiss"]
[EventCountry "ROU"]
[SourceTitle "playchess.com"]
[Source "ChessBase"]
[SourceQuality "1"]
[TimeControl "40/5400+30:900+30"]

1. d4 {[%emt 0:00:03]} d5 {[%emt 0:00:11]} 2. c4 {[%emt 0:00:07]} dxc4 {[%emt 0:00:09]} 3. e3 {[%emt 0:00:10]} Nf6 {[%emt 0:00:12]} 4. Bxc4 {[%emt 0:00:09]} e6 {[%emt 0:00:11]} 5. Nf3 {[%emt 0:00:16]} a6 {[%emt 0:00:18]} 6. O-O {[%emt 0:00:15]} c5 {[%emt 0:00:35]} 7. Bb3 {[%emt 0:00:13]} Nc6 {[%emt 0:01:34]} 8. Qe2 {[%emt 0:06:52]} cxd4 {[%emt 0:00:55]} 9. Rd1 {[%emt 0:00:22]} Be7 {[%emt 0:07:16]} 10. exd4 {[%emt 0:00:39]} O-O {[%emt 0:01:26]} 11. Nc3 {[%emt 0:02:17]} Nb4 {[%emt 0:03:28]} 12. Bg5 {[%emt 0:07:43]} Nbd5 {[%emt 0:06:02]} 13. Ne5 {[%emt 0:03:57]} h6 {[%emt 0:14:05]} 14. Bh4 {[%emt 0:06:50]} Nxc3 {[%emt 0:12:00]} 15. bxc3 {[%emt 0:01:27]} Nd5 {[%emt 0:04:39]} 16. Bxe7 {[%emt 0:03:39]} Qxe7 {[%emt 0:07:46]} 17. Ng6 {[%emt 0:16:52]} Qg5 {[%emt 0:13:06]} 18. Nxf8 {[%emt 0:09:05]} Nf4 {[%emt 0:11:45]} 19. Qf3 {[%emt 0:02:23]} e5 {[%emt 0:03:10]} 20. h4 {[%emt 0:02:15]} Qxh4 {[%emt 0:04:09]} 21. Ng6 {[%emt 0:00:24]} Qg5 {[%emt 0:03:50]} 22. Nxf4 {[%emt 0:02:12]} exf4 {[%emt 0:00:09]} 23. Qd5 {[%emt 0:01:46]} Qf6 {[%emt 0:04:23]} 24. Qe5 {[%emt 0:01:10]} Qh4 {[%emt 0:00:39]} 25. Qe8+ {[%emt 0:00:10]} Kh7 {[%emt 0:00:08]} 26. Bxf7 {[%emt 0:00:51]} Bf5 {[%emt 0:00:50]} 27. Qxa8 {[%emt 0:00:10]} 1-0

[Event "Romanian-ch Women 2022"]
[Site "Eforie Nord"]
[Date "2022.02.20"]
[Round "1.6"]
[White "Maria, Lia-Alexandra"]
[Black "Dragomirescu, Angela"]
[Result "0-1"]
[ECO "B08"]
[WhiteElo "1832"]
[BlackElo "2167"]
[Annotator "ChessBase"]
[PlyCount "84"]
[EventDate "2022.02.20"]
[EventType "swiss"]
[EventCountry "ROU"]
[SourceTitle "playchess.com"]
[Source "ChessBase"]
[SourceQuality "1"]
[TimeControl "40/5400+30:900+30"]

1. e4 {[%emt 0:00:03]} d6 {[%emt 0:00:06]} 2. d4 {[%emt 0:00:06]} Nf6 {[%emt 0:00:04]} 3. Nc3 {[%emt 0:00:07]} g6 {[%emt 0:00:05]} 4. Nf3 {[%emt 0:00:06]} Bg7 {[%emt 0:00:06]} 5. Be2 {[%emt 0:00:07]} O-O {[%emt 0:00:05]} 6. O-O {[%emt 0:00:06]} e6 {[%emt 0:00:31]} 7. h3 {[%emt 0:02:09]} a6 {[%emt 0:02:50]} 8. a4 {[%emt 0:03:31]} b6 {[%emt 0:00:14]} 9. Bg5 {[%emt 0:03:26]} h6 {[%emt 0:00:54]} 10. Be3 {[%emt 0:01:08]} Bb7 {[%emt 0:00:06]} 11. Qc1 {[%emt 0:02:30]} Kh7 {[%emt 0:03:49]} 12. Nd2 {[%emt 0:03:49]} c5 {[%emt 0:05:43]} 13. Rd1 {[%emt 0:02:02]} Qc7 {[%emt 0:18:16]} 14. dxc5 {[%emt 0:02:27]} bxc5 {[%emt 0:03:07]} 15. Nc4 {[%emt 0:03:39]} Rd8 {[%emt 0:13:16]} 16. e5 {[%emt 0:08:35]} dxe5 {[%emt 0:02:33]} 17. Rxd8 {[%emt 0:00:20]} Qxd8 {[%emt 0:00:01]} 18. Bxc5 {[%emt 0:00:12]} Nbd7 {[%emt 0:03:17]} 19. Ba3 {[%emt 0:03:48]} Bc6 {[%emt 0:04:28]} 20. Nd6 {[%emt 0:02:26]} Kg8 {[%emt 0:00:30]} 21. Qd2 {[%emt 0:04:54]} Qc7 {[%emt 0:03:49]} 22. Rd1 {[%emt 0:02:01]} Nb6 {[%emt 0:04:09]} 23. b3 {[%emt 0:01:19]} Nbd5 {[%emt 0:03:56]} 24. Nce4 {[%emt 0:02:47]} Nf4 {[%emt 0:08:50]} 25. Bf3 {[%emt 0:01:09]} Nd7 {[%emt 0:03:18]} 26. Qe3 {[%emt 0:07:38]} Nd5 {[%emt 0:02:42]} 27. Qd3 {[%emt 0:00:58]} f5 {[%emt 0:01:00]} 28. Nc5 {[%emt 0:00:51]} Qxd6 {[%emt 0:04:11]} 29. Nxe6 {[%emt 0:00:35]} Qxe6 {[%emt 0:00:54]} 30. Bxd5 {[%emt 0:00:14]} Qxd5 {[%emt 0:01:48]} 31. Qxd5+ {[%emt 0:00:14]} Bxd5 {[%emt 0:00:01]} 32. Rxd5 {[%emt 0:00:11]} Ra7 {[%emt 0:03:15]} 33. c4 {[%emt 0:01:42]} Kf7 {[%emt 0:00:54]} 34. c5 {[%emt 0:01:14]} Rc7 {[%emt 0:04:25]} 35. a5 {[%emt 0:01:26]} Bf8 {[%emt 0:00:31]} 36. b4 {[%emt 0:01:42]} Ke6 {[%emt 0:00:38]} 37. Rd1 {[%emt 0:00:20]} Be7 {[%emt 0:00:17]} 38. Kf1 {[%emt 0:00:51]} Nb8 {[%emt 0:00:18]} 39. Ke2 {[%emt 0:00:41]} Nc6 {[%emt 0:00:11]} 40. Rd2 {[%emt 0:00:00]} Rb7 {[%emt 0:00:00]} 41. Rb2 {[%emt 0:02:16]} Nd4+ {[%emt 0:01:15]} 42. Kd3 {[%emt 0:00:24]} Nb5 {[%emt 0:00:07]} 0-1

[Event "Romanian-ch Women 2022"]
[Site "Eforie Nord"]
[Date "2022.02.20"]
[Round "1.7"]
[White "Ionescu, Irina"]
[Black "Coman, Emilia-Florentina"]
[Result "1-0"]
[ECO "B40"]
[WhiteElo "2131"]
[BlackElo "1776"]
[Annotator "ChessBase"]
[PlyCount "65"]
[EventDate "2022.02.20"]
[EventType "swiss"]
[EventCountry "ROU"]
[SourceTitle "playchess.com"]
[Source "ChessBase"]
[SourceQuality "1"]
[TimeControl "40/5400+30:900+30"]

1. e4 {[%emt 0:00:07]} e6 {[%emt 0:00:21]} 2. d3 {[%emt 0:00:14]} c5 {[%emt 0:02:02]} 3. Nf3 {[%emt 0:00:25]} b6 {[%emt 0:03:29]} 4. g3 {[%emt 0:00:40]} Bb7 {[%emt 0:01:04]} 5. Bg2 {[%emt 0:00:07]} d6 {[%emt 0:01:00]} 6. O-O {[%emt 0:02:38]} Nc6 {[%emt 0:04:46]} 7. c3 {[%emt 0:01:23]} Nf6 {[%emt 0:07:49]} 8. Re1 {[%emt 0:01:05]} Be7 {[%emt 0:07:33]} 9. a3 {[%emt 0:02:15]} O-O {[%emt 0:02:18]} 10. b4 {[%emt 0:00:22]} Ne5 {[%emt 0:10:03]} 11. d4 {[%emt 0:19:26]} Nxf3+ {[%emt 0:02:57]} 12. Bxf3 {[%emt 0:03:48]} cxd4 {[%emt 0:02:19]} 13. cxd4 {[%emt 0:00:15]} d5 {[%emt 0:00:17]} 14. e5 {[%emt 0:02:22]} Ne8 {[%emt 0:00:30]} 15. Nc3 {[%emt 0:00:30]} Nc7 {[%emt 0:00:30]} 16. Be2 {[%emt 0:00:30]} a6 {[%emt 0:00:30]} 17. Bd3 {[%emt 0:00:30]} Ne8 {[%emt 0:38:25]} 18. h4 {[%emt 1:02:53]} Bc8 {[%emt 0:06:27]} 19. Bf4 {[%emt 0:00:00]} f5 {[%emt 0:05:03]} 20. Qd2 {[%emt 0:00:00]} Kh8 {[%emt 0:02:28]} 21. Rec1 {[%emt 0:00:00]} Bd7 {[%emt 0:00:05]} 22. Kg2 {[%emt 0:00:00]} Nc7 {[%emt 0:00:24]} 23. Ne2 {[%emt 0:00:00]} Rb8 {[%emt 0:01:04]} 24. Bg5 {[%emt 0:00:00]} Bb5 {[%emt 0:00:31]} 25. Nf4 {[%emt 0:00:00]} Bxd3 {[%emt 0:00:16]} 26. Qxd3 {[%emt 0:00:00]} Bxg5 {[%emt 0:00:42]} 27. hxg5 {[%emt 0:00:00]} Re8 {[%emt 0:00:32]} 28. Rc6 {[%emt 0:00:00]} Qd7 {[%emt 0:00:32]} 29. Rac1 {[%emt 0:00:00]} Rb7 {[%emt 0:00:27]} 30. a4 {[%emt 0:00:00]} Kg8 {[%emt 0:00:32]} 31. Qc2 {[%emt 0:00:00]} Re7 {[%emt 0:00:12]} 32. g6 {[%emt 0:00:00]} hxg6 {[%emt 0:00:49]} 33. Nxg6 {[%emt 0:07:30]} 1-0

[Event "Romanian-ch Women 2022"]
[Site "Eforie Nord"]
[Date "2022.02.20"]
[Round "1.8"]
[White "Pitigoi, Sabina-Andreea"]
[Black "Cosman, Andreea-Marioara"]
[Result "1-0"]
[ECO "B36"]
[WhiteElo "1766"]
[BlackElo "2127"]
[Annotator "NA"]
[PlyCount "89"]
[EventDate "2022.02.20"]
[EventType "swiss"]
[EventCountry "ROU"]
[SourceTitle "playchess.com"]
[Source "ChessBase"]
[SourceQuality "1"]
[TimeControl "40/5400+30:900+30"]

1. d4 {[%emt 1:31:00]} Nf6 {[%emt 1:31:00]} 2. Nf3 {[%emt 0:00:30]} g6 {[%emt 0:00:30]} 3. c4 {[%emt 0:00:30]} c5 {[%emt 0:00:30]} 4. Nc3 {[%emt 0:00:30]} cxd4 {[%emt 0:00:30]} 5. Nxd4 {[%emt 0:00:30]} Nc6 {[%emt 0:00:30]} 6. e4 {[%emt 0:00:30]} Nxd4 {[%emt 0:00:30]} 7. Qxd4 {[%emt 0:00:30]} d6 {[%emt 0:00:30]} 8. Be3 {[%emt 0:00:30]} Bg7 {[%emt 0:00:30]} 9. f3 {[%emt 0:00:30]} Be6 {[%emt 0:00:30]} 10. Be2 {[%emt 0:00:30]} O-O {[%emt 0:00:30]} 11. Qd2 {[%emt 0:00:30]} a5 {[%emt 0:00:30]} 12. b3 {[%emt 0:00:30]} a4 {[%emt 0:00:30]} 13. O-O {[%emt 0:00:30]} a3 {[%emt 0:00:30]} 14. Rac1 {[%emt 0:00:30]} Qa5 {[%emt 0:00:30]} 15. b4 {[%emt 0:00:30]} Qxb4 {[%emt 0:00:30]} 16. Rb1 {[%emt 0:01:00]} Qa5 {[%emt 0:00:30]} 17. Bb6 {[%emt 0:00:30]} Qh5 {[%emt 0:00:30]} (17... Qa6 $1 $14) 18. Rb5 {[%emt 0:00:30]} d5 {[%emt 0:00:30]} 19. Nxd5 {[%emt 0:00:30]} (19. cxd5 $18 Bd7 20. Rb4) 19... Nxd5 {[%emt 0:00:30]} 20. cxd5 {[%emt 0:00:30]} Bd7 {[%emt 0:00:30]} 21. Rc5 $2 {[%emt 0:00:30]} (21. f4 $16 Bxb5 22. Bxh5 Bxf1 23. Kxf1 gxh5 24. e5) 21... Rfc8 {[%emt 0:00:30] [#]} 22. f4 $1 {[%emt 0:00:30]} Qh6 {[%emt 0:00:30] [#]} 23. Qb4 $1 {[%emt 0:00:30]} g5 {[%emt 0:00:30] [#]} 24. Rxc8+ {[%emt 0:00:30]} ({White should play} 24. Rc7 $1 $16 {[%cal Rc7d7]} Bc3 25. Rxc3 (25. fxg5 Bxb4 26. gxh6 Rxc7 $11) 25... Rxc3 26. fxg5 (26. Qxc3 Qxb6+ 27. Rf2 Rc8 $17)) 24... Rxc8 {[%emt 0:00:30]} 25. Be3 {[%emt 0:00:30]} Rc3 {[%emt 0:00:30]} 26. fxg5 {[%emt 0:00:30]} Qd6 {[%emt 0:01:00]} 27. Qxd6 {[%emt 0:00:30]} (27. Qb6 $17 {is the only way for White.} Qxb6 28. Bxb6) 27... exd6 {[%emt 0:00:30]} 28. Bf4 {[%emt 0:00:30]} Rc2 {[%emt 0:00:30]} 29. Bh5 {[%emt 0:00:30]} Bb5 {[%emt 0:00:30]} 30. Rb1 {[%emt 0:00:30]} Bd4+ {[%emt 0:00:30]} 31. Kh1 {[%emt 0:00:30]} Rxa2 {[%emt 0:00:30]} 32. Bxd6 {[%emt 0:00:30]} Rb2 {[%emt 0:00:30]} 33. Rc1 {[%emt 0:00:30]} Rb1 {[%emt 0:00:30]} 34. Bxa3 {[%emt 0:01:00]} Rxc1+ {[%emt 0:00:30]} 35. Bxc1 {[%emt 0:00:30]} Bd3 {[%emt 0:00:30]} 36. d6 {[%emt 0:00:30]} Kf8 {[%emt 0:00:30]} 37. Ba3 {[%emt 0:00:30]} Ke8 {[%emt 0:00:30]} 38. Bf3 {[%emt 0:00:30]} b5 {[%emt 0:00:30]} 39. Bb4 {[%emt 0:00:30]} Bb6 {[%emt 0:00:30]} 40. e5 {[%emt 0:00:30]} Bf5 {[%emt 0:00:30]} 41. Bc6+ {[%emt 0:15:30]} Bd7 {[%emt 0:15:30]} 42. Be4 {[%emt 0:00:30]} Bd4 {[%emt 0:00:30]} 43. Bxh7 {[%emt 0:00:30]} Bxe5 {[%emt 0:00:30]} 44. Bd3 $18 {[%emt 0:00:30]} Kf8 {[%emt 0:00:30]} 45. Bxb5 1-0

[Event "Romanian-ch Women 2022"]
[Site "Eforie Nord"]
[Date "2022.02.20"]
[Round "1.9"]
[White "Lehaci, Miruna-Daria"]
[Black "Puia, Alexia-Teodora"]
[Result "1-0"]
[ECO "D00"]
[WhiteElo "2125"]
[BlackElo "1750"]
[Annotator "ChessBase"]
[PlyCount "79"]
[EventDate "2022.02.20"]
[EventType "swiss"]
[EventCountry "ROU"]
[SourceTitle "playchess.com"]
[Source "ChessBase"]
[SourceQuality "1"]
[TimeControl "40/5400+30:900+30"]

1. d4 {[%emt 0:00:03]} d5 {[%emt 0:00:09]} 2. Bf4 {[%emt 0:00:03]} Nf6 {[%emt 0:00:10]} 3. e3 {[%emt 0:00:04]} c5 {[%emt 1:31:41]} 4. Nc3 {[%emt 0:00:08]} a6 {[%emt 0:00:00]} 5. dxc5 {[%emt 0:00:07]} e6 {[%emt 0:00:00]} 6. Na4 {[%emt 0:01:33]} Nbd7 {[%emt 0:00:00]} 7. b4 {[%emt 0:02:35]} e5 {[%emt 0:00:00]} 8. Bg5 {[%emt 0:06:19]} Qc7 {[%emt 0:00:00]} 9. Bxf6 {[%emt 0:06:09]} Nxf6 {[%emt 0:00:00]} 10. Nb6 {[%emt 0:02:27]} Rb8 {[%emt 0:00:00]} 11. c4 {[%emt 0:04:03]} dxc4 {[%emt 0:00:00]} 12. Bxc4 {[%emt 0:02:37]} Be7 {[%emt 0:00:00]} 13. Ne2 {[%emt 0:03:20]} O-O {[%emt 0:00:00]} 14. Nc3 {[%emt 0:02:37]} Qc6 {[%emt 0:00:00]} 15. O-O {[%emt 0:03:51]} Bd8 {[%emt 0:00:00]} 16. Ncd5 {[%emt 0:06:23]} Nxd5 {[%emt 0:00:00]} 17. Bxd5 {[%emt 0:01:43]} Qb5 {[%emt 0:00:00]} 18. Nxc8 Rxc8 {[%emt 0:00:00]} 19. Qb3 {[%emt 0:15:27]} Bf6 {[%emt 0:00:00]} 20. e4 {[%emt 0:01:07]} Qd7 {[%emt 0:00:00]} 21. Rfd1 {[%emt 0:01:20]} Qc7 {[%emt 0:00:00]} 22. Rd3 {[%emt 0:01:32]} Rb8 {[%emt 0:00:00]} 23. Rad1 {[%emt 0:02:11]} Rbd8 {[%emt 0:00:00]} 24. Rc3 {[%emt 0:01:54]} h6 {[%emt 0:00:00]} 25. a4 {[%emt 0:00:32]} Rc8 {[%emt 0:01:41]} 26. Rdc1 {[%emt 0:02:14]} Bg5 {[%emt 0:00:35]} 27. R1c2 {[%emt 0:00:06]} Bd8 {[%emt 0:01:18]} 28. g3 {[%emt 0:01:48]} Qe7 {[%emt 0:00:35]} 29. Rd3 {[%emt 0:02:06]} a5 {[%emt 0:02:13]} 30. bxa5 {[%emt 0:05:50]} Rxc5 {[%emt 0:02:42]} 31. Rxc5 {[%emt 0:01:32]} Qxc5 {[%emt 0:00:06]} 32. Qxb7 {[%emt 0:05:20]} Qxa5 {[%emt 0:01:14]} 33. Qd7 {[%emt 0:02:42]} Bf6 {[%emt 0:00:58]} 34. Kg2 {[%emt 0:01:05]} Qb4 {[%emt 0:01:48]} 35. Rb3 {[%emt 0:00:11]} Qd4 {[%emt 0:00:28]} 36. Rb7 {[%emt 0:00:43]} Kh8 {[%emt 0:00:34]} 37. a5 {[%emt 0:01:10]} Bd8 {[%emt 0:01:01]} 38. Rb8 {[%emt 0:01:18]} Be7 {[%emt 0:00:34]} 39. Rxf8+ {[%emt 0:00:15]} Bxf8 {[%emt 0:00:04]} 40. Qxf7 {[%emt 0:00:00]} 1-0